bitfinex/quotes_ETHUSD_20220215
["timestamp","ask_amount","ask_price","bid_price","bid_amount"]
[1644929354710,0.04035806,3110.1,3109.8,0.3]
[1644929354909,0.00272096,3110.0,3109.8,2.71078]
[1644929355108,0.00272096,3110.0,3109.9,0.80359]
[1644929355508,1.37065491,3110.0,3109.9,0.80359]
[1644929355711,1.36793395,3110.0,3109.9,0.80359]
[1644929356309,1.36793395,3110.0,3109.9,1.60719]
[1644929356709,1.36793395,3110.0,3109.7,1.2687]
[1644929356710,1.36793395,3110.0,3109.7,0.465]
[1644929356910,1.36793395,3110.0,3109.5,1.1485]
[1644929357112,1.36793395,3110.0,3109.3,2.37259]
[1644929357359,1.36793395,3110.0,3109.4,3.0953125]
[1644929357560,0.04307902,3110.1,3109.4,3.0953125]
[1644929357760,1.36798313,3110.0,3109.6,0.80381]
[1644929357962,0.00352762,3109.9,3109.6,0.80381]
[1644929358262,1.3715131,3109.9,3109.7,0.80379]
[1644929358460,0.00272096,3110.0,3109.6,0.80381]
[1644929358664,0.00352762,3109.9,3109.6,0.80381]
[1644929358861,1.36796943,3109.9,3109.6,0.80381]
[1644929359061,0.00352762,3109.9,3109.6,1.60759]
[1644929359261,1.36796943,3109.9,3109.6,1.60759]
[1644929359462,1.36796943,3109.8,3109.7,1.60758]
[1644929359661,0.00272096,3109.9,3109.7,1.60758]
[1644929359862,0.00624858,3109.9,3109.8,3.12860438]
[1644929360263,0.00272096,3109.9,3109.8,3.12860438]
[1644929360563,0.04035806,3110.1,3109.8,3.42860438]
[1644929360764,0.04035806,3110.1,3109.9,1.60718]
[1644929361006,0.04035806,3110.1,3110.0,3.11669338]
[1644929361207,1.40822172,3110.1,3109.9,1.60718]
[1644929361411,1.36786366,3110.0,3109.9,4.0179542]
[1644929361609,1.36786366,3110.0,3109.9,3.2143628]
[1644929362409,1.36786366,3110.0,3109.9,1.60718]
[1644929364864,0.04660664,3110.1,3109.9,1.60718]
[1644929365162,0.04307902,3110.1,3109.9,1.60718]
[1644929365359,0.04035806,3110.1,3109.9,1.60718]
[1644929365965,0.04035806,3110.1,3109.9,4.018022]
[1644929366364,0.0307797,3110.4,3110.0,0.80367]
[1644929366567,1.3678702,3110.3,3110.1,1.60734]
[1644929366764,1.37139782,3110.3,3110.1,1.60734]
[1644929366965,1.37139782,3110.3,3109.8,2.4111167]
[1644929367165,1.32139782,3110.3,3109.8,1.60739]
[1644929367465,1.32139782,3110.3,3109.4,1.60756]
[1644929367665,1.32139782,3110.3,3109.5,0.80381]
[1644929368066,1.32139782,3110.3,3109.7,0.80379]
[1644929368267,1.32139782,3110.3,3109.3,2.77249]
[1644929368713,1.32139782,3110.3,3109.6,0.8038]
[1644929369111,1.32139782,3110.3,3109.5,0.80382]
[1644929369915,9.133e-05,3110.4,3110.2,4.1]
[1644929370114,9.133e-05,3110.4,3110.3,1.0]
[1644929370314,0.01079692,3110.7,3110.3,1.6]
[1644929370515,0.01079692,3110.7,3110.4,0.465]
[1644929371115,0.01079692,3110.7,3110.4,2.8753467]
[1644929371313,0.01079692,3110.7,3110.5,1.3]
[1644929371516,0.01079692,3110.7,3110.5,0.3]
[1644929371912,0.01079692,3110.7,3110.6,0.3]
[1644929372116,0.01079692,3110.7,3110.6,4.69368785]
[1644929372556,0.01079692,3110.7,3110.6,5.69368785]
[1644929373357,0.49527764,3110.7,3110.6,5.69368785]
[1644929373559,0.01079692,3110.7,3110.6,5.69368785]
[1644929373957,0.01079692,3110.7,3110.6,5.99368785]
[1644929374161,0.01079692,3110.7,3110.6,6.45868785]
[1644929375660,0.01079692,3110.7,3110.6,3.3721158]
[1644929377510,0.01079692,3110.7,3110.6,6.75775081]
[1644929378313,0.01079692,3110.7,3110.6,25.63775081]
[1644929378513,0.01079692,3110.7,3110.6,6.75775081]
[1644929381260,0.01079692,3110.7,3110.6,2.0721158]
[1644929382064,0.01079692,3110.7,3110.6,1.26857]
[1644929382266,0.01079692,3110.7,3110.6,0.465]
[1644929383269,0.01079692,3110.7,3110.5,0.3]
[1644929383505,0.01079692,3110.7,3110.3,2.75084]
[1644929383706,0.01079692,3110.7,3110.3,1.60714]
[1644929384714,0.94483723,3110.5,3110.3,1.60714]
[1644929384910,0.94483723,3110.5,3110.2,1.60719]
[1644929384911,0.00350999,3110.5,3110.2,1.60719]
[1644929385308,0.01349773,3110.7,3110.2,1.60719]
[1644929385710,0.01349773,3110.7,3110.2,4.0181904]
[1644929385909,0.01079692,3110.7,3110.4,0.80363]
[1644929386109,0.00270081,3110.6,3110.4,0.80363]
[1644929386409,0.00270081,3110.6,3109.9,5.9639507]
[1644929386410,0.0062108,3110.6,3109.9,5.9639507]
[1644929386612,0.0062108,3110.6,3109.9,4.35665]
[1644929387257,0.00621067,3110.6,3110.1,0.80371]
[1644929387461,0.00270068,3110.6,3110.1,2.41092]
[1644929387660,0.00270068,3110.6,3110.1,4.01819]
[1644929388261,0.01079692,3110.7,3110.1,4.01819]
[1644929388460,0.00270077,3110.6,3110.1,4.01819]
[1644929388660,0.00270077,3110.6,3109.9,1.60735]
[1644929388863,0.00270077,3110.6,3109.5,0.25]
[1644929389063,7.43270077,3110.6,3109.2,1.169]
[1644929389267,0.00350999,3110.5,3109.2,3.68820053]
[1644929389461,0.00350999,3110.5,3109.3,3.02736712]
[1644929390065,0.86767494,3110.5,3109.6,0.80383]
[1644929390269,0.86767494,3110.5,3109.5,3.88819083]
[1644929390465,0.86767494,3110.5,3109.5,3.08433083]
[1644929391112,0.86767494,3110.5,3109.6,0.8038]
[1644929391515,0.00350999,3110.5,3109.7,0.8038]
[1644929392014,0.00350999,3110.5,3109.8,3.93569343]
[1644929392215,0.00270055,3110.6,3109.9,0.80374]
[1644929392514,0.00270055,3110.6,3110.1,0.80355]
[1644929392714,0.00270055,3110.6,3110.2,1.56856]
[1644929392914,0.00270055,3110.6,3110.3,0.8035659]
[1644929393115,0.01079692,3110.7,3110.2,1.065]
[1644929393316,0.01079692,3110.7,3110.3,0.80363]
[1644929393618,0.00270081,3110.6,3110.3,1.60732]
[1644929393816,0.00270081,3110.6,3110.4,0.3]
[1644929394015,0.00270081,3110.6,3110.3,0.80363]
[1644929394419,0.01079692,3110.7,3110.3,1.6072724]
[1644929394763,0.01349773,3110.7,3110.3,3.2144624]
[1644929394965,0.01349773,3110.7,3110.4,0.80366]
[1644929395163,0.01349773,3110.7,3110.4,2.41093]
[1644929395362,0.01349773,3110.7,3110.4,1.60728]
[1644929395565,0.01079692,3110.7,3110.4,1.60728]
[1644929395765,0.01349773,3110.7,3110.4,1.60728]
[1644929396363,0.01349773,3110.7,3110.4,0.80362]
[1644929396764,0.01079692,3110.7,3110.4,0.80362]
[1644929396969,0.01349773,3110.7,3110.4,0.80362]
[1644929397866,0.01079692,3110.7,3110.4,0.80362]
[1644929398168,0.01349773,3110.7,3110.4,0.80362]
[1644929399115,0.01079692,3110.7,3110.4,0.80362]
[1644929399313,0.01349773,3110.7,3110.4,0.80362]
[1644929399709,0.01349773,3110.7,3110.4,2.4109]
[1644929399911,0.01349773,3110.7,3110.4,1.60726]
[1644929400312,0.01079692,3110.7,3110.5,0.8035698]
[1644929400711,0.01349773,3110.7,3110.5,0.8035698]
[1644929400915,0.01349773,3110.7,3110.5,1.1035698]
[1644929401412,0.01349773,3110.7,3110.6,3.07468732]
[1644929401612,0.01349773,3110.7,3110.6,3.37468732]
[1644929401613,0.01079692,3110.7,3110.6,3.37468732]
[1644929403258,0.01079692,3110.7,3110.6,0.3]
[1644929403459,0.01079692,3110.7,3110.6,3.37174471]
[1644929404460,0.01079692,3110.7,3110.6,4.37174471]
[1644929406826,0.00246812,3111.0,3110.7,7.65323]
[1644929407025,0.00246812,3111.0,3110.8,5.38265162]
[1644929407225,0.00246812,3111.0,3110.9,4.09863152]
[1644929407423,0.00493624,3111.0,3110.9,5.56363152]
[1644929408023,0.00493624,3111.0,3110.9,7.17008152]
[1644929408422,0.00987248,3111.0,3110.9,7.17008152]
[1644929408724,0.00987248,3111.0,3110.9,10.38301132]
[1644929408925,0.00987248,3111.0,3110.9,9.97625078]
[1644929409126,0.00987248,3111.0,3110.9,8.97625078]
[1644929409324,0.00987248,3111.0,3110.9,6.8843798]
[1644929409524,0.00987248,3111.0,3110.9,5.8843798]
[1644929409768,0.00987248,3111.0,3110.9,8.98213342]
[1644929411165,0.00987248,3111.0,3110.9,5.8843798]
[1644929411766,0.00987248,3111.0,3110.9,1.60645]
[1644929413708,0.00987248,3111.0,3110.9,1.90645]
[1644929416916,0.00987248,3111.0,3110.9,1.60645]
[1644929417773,0.00987248,3111.0,3110.9,1.90645]
[1644929418170,0.00987248,3111.0,3110.9,2.20645]
[1644929420277,0.00987248,3111.0,3110.9,1.90645]
[1644929422821,1.37704681,3111.0,3110.9,1.90645]
[1644929423018,0.01338247,3111.0,3110.9,1.90645]
[1644929423218,0.00987248,3111.0,3110.9,1.90645]
[1644929424319,0.00987248,3111.0,3110.9,2.20645]
[1644929424970,0.00987248,3111.0,3110.9,1.90645]
[1644929425770,0.00987248,3111.0,3110.9,1.60645]
[1644929425971,0.00987248,3111.0,3110.9,1.90645]
[1644929426771,0.00987248,3111.0,3110.9,1.60645]
[1644929427071,0.00987248,3111.0,3110.9,3.21328]
[1644929427671,0.00987248,3111.0,3110.9,3.51328]
[1644929428822,0.00987248,3111.0,3110.9,3.81328]
[1644929430218,0.00850553,3111.0,3110.9,3.81328]
[1644929431221,0.00850553,3111.0,3110.9,3.8456892]
[1644929431624,0.00850553,3111.0,3110.9,3.2456892]
[1644929432865,0.00850553,3111.0,3110.9,3.8456892]
[1644929435168,0.00850553,3111.0,3110.9,3.2456892]
[1644929435769,0.00850553,3111.0,3110.9,0.0324092]
[1644929436218,0.0026786,3111.1,3110.9,0.0324092]
[1644929436418,0.01123943,3111.0,3110.9,0.8358597]
[1644929436818,0.01123943,3111.0,3110.9,1.9392797]
[1644929437218,0.01123943,3111.0,3110.9,1.6392797]
[1644929438220,0.01123943,3111.0,3110.9,0.8358292]
[1644929439519,0.01123943,3111.0,3110.9,3.9369776]
[1644929439761,0.01123943,3111.0,3110.9,0.8358292]
[1644929444215,0.01123943,3111.0,3110.9,1.1358292]
[1644929444414,0.01123943,3111.0,3110.9,0.8358292]
[1644929445714,0.01123943,3111.0,3110.9,1.1358292]
[1644929446115,0.01123943,3111.0,3110.9,0.8358292]
[1644929447570,0.01123943,3111.0,3110.9,0.0324092]
[1644929447571,1.37834571,3111.0,3110.9,0.0324092]
[1644929447967,2.18205571,3111.0,3110.9,0.0324092]
[1644929448574,0.94481338,3110.3,3110.0,9.41119]
[1644929448769,0.94481338,3110.3,3110.1,0.80372]
[1644929449370,0.94481338,3110.3,3110.1,0.3]
[1644929449571,0.94481338,3110.3,3110.0,0.80376]
[1644929449870,0.06481839,3110.8,3110.0,1.9074858]
[1644929450070,1.36736069,3110.7,3110.0,1.1037258]
[1644929450672,1.31736069,3110.7,3110.1,0.80373]
[1644929450872,0.91781845,3110.6,3110.2,0.8036705]
[1644929451319,0.91781845,3110.6,3110.0,3.21471]
[1644929451512,0.91781845,3110.6,3110.0,4.82205]
[1644929451717,0.91781845,3110.6,3110.2,0.80367]
[1644929451916,0.91781845,3110.6,3110.2,1.60736]
[1644929452115,0.91781845,3110.6,3110.2,0.80369]
[1644929452519,0.06481839,3110.8,3110.2,0.80369]
[1644929453016,0.06481839,3110.8,3110.3,4.19375044]
[1644929453216,0.06481839,3110.8,3110.5,1.60707]
[1644929453416,0.06481839,3110.8,3110.6,0.3]
[1644929453621,0.06481839,3110.8,3110.6,4.23395605]
[1644929453816,0.06481839,3110.8,3110.7,1.60694]
[1644929454216,0.06481839,3110.8,3110.7,4.72668299]
[1644929454415,0.06481839,3110.8,3110.7,4.80343253]
[1644929454622,0.01391799,3111.0,3110.7,5.60680253]
[1644929454883,0.01391799,3111.0,3110.8,1.26826]
[1644929455074,0.01391799,3111.0,3110.9,0.3]
[1644929455272,0.01391799,3111.0,3110.9,0.765]
[1644929455672,0.01123943,3111.0,3110.9,0.765]
[1644929455878,0.01123943,3111.0,3110.9,3.1745]
[1644929456375,0.01123943,3111.0,3110.9,4.1745]
[1644929456773,0.01123943,3111.0,3110.9,7.60626479]
[1644929460429,0.01123943,3111.0,3110.9,2.8745]
[1644929460829,0.01123943,3111.0,3110.9,2.4095]
[1644929461030,0.01123943,3111.0,3110.8,3.2129046]
[1644929461031,0.01123943,3111.0,3110.8,6.34248362]
[1644929461231,0.01123943,3111.0,3110.8,6.34727502]
[1644929461632,0.01123943,3111.0,3110.9,3.19701646]
[1644929461830,0.01123943,3111.0,3110.9,3.49701646]
[1644929462030,0.01123943,3111.0,3110.9,3.44701646]
[1644929462864,0.01123943,3111.0,3110.9,3.19701646]
[1644929463865,0.01123943,3111.0,3110.9,3.49701646]
[1644929465066,0.01123943,3111.0,3110.9,4.49701646]
[1644929466021,0.0026786,3111.1,3111.0,7.65312]
[1644929466217,0.0026786,3111.1,3111.0,11.63461241]
[1644929466418,0.00175114,3111.3,3111.0,12.63461241]
[1644929466721,0.00207911,3111.2,3111.1,2.10312]
[1644929466922,0.00207911,3111.2,3111.1,6.10684174]
[1644929467521,0.00175114,3111.3,3111.1,5.780914]
[1644929467726,0.00175114,3111.3,3111.2,0.3]
[1644929467928,0.00383025,3111.3,3111.2,0.3]
[1644929468722,0.00175114,3111.3,3111.2,0.3]
[1644929469123,0.00175114,3111.3,3111.1,4.01597]
[1644929469326,0.96009363,3111.2,3110.9,1.2097]
[1644929469521,0.96009363,3111.2,3110.4,5.0986]
[1644929469769,0.96009363,3111.2,3110.3,3.5]
[1644929469972,0.96009363,3111.2,3110.2,3.2038]
[1644929470169,0.00207911,3111.0,3110.2,3.2038]
[1644929470371,0.00207911,3111.0,3110.5,0.80356]
[1644929470666,0.00207911,3111.0,3110.6,0.80355]
[1644929471266,0.96009363,3111.2,3110.6,0.80355]
[1644929471466,0.00221326,3111.0,3110.7,0.80356]
[1644929471870,0.00221326,3111.0,3110.7,1.60712]
[1644929472472,0.96009363,3111.2,3110.7,1.60712]
[1644929472671,0.96009363,3111.2,3110.7,0.80356]
[1644929472672,0.00221326,3111.0,3110.7,0.80356]
[1644929472868,0.00221326,3111.0,3110.6,0.80358]
[1644929473268,0.00221326,3111.0,3110.4,3.2142]
[1644929473511,1.36722067,3111.1,3110.3,1.2019]
[1644929473512,0.8036878,3110.9,3110.3,1.2019]
[1644929473712,0.8036878,3110.9,3109.9,3.0282]
[1644929473713,0.8036878,3110.9,3109.9,3.3282]
[1644929473916,0.8036878,3110.9,3110.2,0.80368]
[1644929474111,0.00221326,3111.0,3110.2,2.41103]
[1644929474313,0.00221326,3111.0,3110.2,0.80369]
[1644929474915,2.14499363,3111.2,3110.2,3.91468646]
[1644929475113,0.00218312,3111.0,3110.2,3.91468646]
[1644929475318,0.00218312,3111.0,3110.5,1.60707]
[1644929475517,0.00218312,3111.0,3110.6,4.68726716]
[1644929475717,0.00218312,3111.0,3110.7,1.6664]
[1644929476015,0.00175114,3111.3,3110.7,1.6664]
[1644929476016,0.00175114,3111.3,3110.8,4.01046886]
[1644929476216,0.00218326,3111.0,3110.8,4.47546886]
[1644929476416,0.00218326,3111.0,3110.9,4.34784062]
[1644929477269,0.00175114,3111.3,3110.9,5.15119282]
[1644929477469,0.00218326,3111.1,3110.9,5.15119282]
[1644929477670,0.00218326,3111.1,3111.0,3.10553071]
[1644929478271,0.00218326,3111.1,3111.0,5.01223071]
[1644929478472,0.00175114,3111.3,3111.1,0.80328]
[1644929478771,0.00218998,3111.2,3111.1,1.606551]
[1644929479372,0.00218998,3111.2,3111.1,2.409831]
[1644929479575,0.00175114,3111.3,3111.1,2.409831]
[1644929479772,0.00175114,3111.3,3111.1,4.016521]
[1644929479973,0.00175114,3111.3,3111.1,3.21325]
[1644929480879,3.50997882,3111.9,3111.2,0.3]
[1644929481131,1.36697864,3111.8,3111.4,0.80343]
[1644929481319,2.22241426,3112.0,3111.4,0.80343]
[1644929481320,1.36697864,3111.7,3111.4,0.80343]
[1644929481519,2.22241426,3112.0,3111.4,0.80343]
[1644929481720,1.36697786,3111.9,3111.4,0.80343]
[1644929482320,1.369651,3111.9,3111.4,0.80343]
[1644929482519,1.369651,3111.9,3111.5,1.60677]
[1644929482720,1.369651,3111.9,3111.6,0.80336]
[1644929483323,1.36697786,3111.9,3111.6,0.80336]
[1644929483523,1.369651,3111.9,3111.4,0.80342]
[1644929483724,1.37315328,3111.9,3111.5,0.80345]
[1644929483924,1.36697786,3111.8,3111.5,0.80345]
[1644929484124,1.36697786,3111.8,3111.5,1.10345]
[1644929484325,1.36697786,3111.8,3111.5,0.80345]
[1644929484770,0.00617542,3111.8,3111.5,0.80345]
[1644929485167,1.36695725,3111.7,3111.5,0.80345]
[1644929485769,0.00350228,3111.7,3111.5,1.10345]
[1644929486771,0.00350228,3111.7,3111.5,2.6298136]
[1644929486974,0.00350228,3111.7,3111.6,0.80336]
[1644929487276,0.00267314,3111.8,3111.7,4.55]
[1644929487471,0.0096777,3111.8,3111.7,8.7018018]
[1644929487672,0.0096777,3111.8,3111.7,5.1518018]
[1644929488073,0.00700456,3111.8,3111.7,7.5608218]
[1644929488270,0.00700456,3111.8,3111.7,7.10910591]
[1644929490324,0.00700456,3111.8,3111.7,6.10910591]
[1644929490625,0.00700456,3111.8,3111.7,7.10910591]
[1644929491224,0.00700456,3111.8,3111.7,6.10910591]
[1644929491427,0.00700456,3111.8,3111.7,3.00902]
[1644929491625,0.00700456,3111.8,3111.6,3.132117]
[1644929491829,0.00700456,3111.8,3111.6,0.80302]
[1644929492872,0.00700456,3111.8,3111.6,2.329282]
[1644929493070,0.00700456,3111.8,3111.6,3.132632]
[1644929493470,1.16313212,3112.0,3111.7,0.3]
[1644929493770,0.01400912,3111.8,3111.7,1.90653]
[1644929494171,0.01400912,3111.8,3111.7,2.70978]
[1644929494370,0.01400912,3111.8,3111.7,2.40978]
[1644929494572,0.01400912,3111.8,3111.7,2.70978]
[1644929495771,0.01400912,3111.8,3111.7,3.00978]
[1644929497418,0.01400912,3111.8,3111.7,6.12225086]
[1644929497621,0.01400912,3111.8,3111.7,3.00978]
[1644929498219,0.01400912,3111.8,3111.7,6.13579419]
[1644929498617,0.01400912,3111.8,3111.7,3.00978]
[1644929499019,0.01400912,3111.8,3111.7,6.35400054]
[1644929499420,0.01400912,3111.8,3111.7,3.00978]
[1644929500278,0.01400912,3111.8,3111.7,6.11701128]
[1644929500472,0.01400912,3111.8,3111.7,6.10882292]
[1644929503623,0.01400912,3111.8,3111.7,3.00978]
[1644929503825,0.01400912,3111.8,3111.7,2.70978]
[1644929505026,0.01400912,3111.8,3111.7,1.90653]
[1644929505224,0.01400912,3111.8,3111.7,0.3]
[1644929505426,0.01400912,3111.8,3111.2,5.10674]
[1644929505625,0.01400912,3111.8,3111.4,0.3]
[1644929505827,0.01400912,3111.8,3111.1,1.7861]
[1644929506025,0.01400912,3111.8,3111.6,0.80338]
[1644929506225,0.01663567,3111.8,3111.6,0.80338]
[1644929507276,0.01400912,3111.8,3111.6,0.80338]
[1644929507474,0.01400912,3111.8,3111.6,1.10338]
[1644929508082,0.01400912,3111.8,3111.6,2.20665]
[1644929508282,0.01400912,3111.8,3111.6,3.7327932]
[1644929509278,0.01400912,3111.8,3111.7,1.60639]
[1644929512019,0.01400912,3111.8,3111.7,5.67559783]
[1644929512622,0.01400912,3111.8,3111.7,4.67559783]
[1644929512822,0.01400912,3111.8,3111.7,1.60639]
[1644929513023,0.01050463,3112.4,3111.8,3.95]
[1644929513227,0.01050463,3112.4,3111.9,3.7745112]
[1644929513423,1.2357,3112.7,3112.1,0.80308]
[1644929513623,0.01050463,3112.4,3112.1,1.10308]
[1644929513824,0.01050463,3112.4,3112.1,0.3]
[1644929514022,0.01050463,3112.4,3112.0,2.20615]
[1644929514423,1.11085215,3112.7,3112.2,0.8031]
[1644929514623,1.36664482,3112.4,3112.1,0.80308]
[1644929515077,1.36664482,3112.4,3112.0,0.3]
[1644929515277,1.36664482,3112.4,3111.8,1.3]
[1644929515472,1.36664482,3112.4,3112.1,1.60643]
[1644929515877,1.36664482,3112.4,3112.1,1.40322]
[1644929516674,1.36664482,3112.4,3112.1,2.20644]
[1644929517076,1.36664482,3112.4,3112.1,0.3]
[1644929517282,1.91411215,3112.7,3111.9,0.3]
[1644929517677,1.36664871,3112.4,3111.9,0.6]
[1644929517877,1.36664871,3112.4,3111.9,0.3]
[1644929518276,0.00261999,3112.3,3111.9,0.3]
[1644929518522,0.00261999,3112.3,3111.9,1.10323]
[1644929518719,0.00261999,3112.3,3111.9,1.90647]
[1644929518920,0.00261999,3112.3,3111.9,1.10323]
[1644929519324,1.36664871,3112.4,3111.9,1.10323]
[1644929519524,0.00261999,3112.3,3111.9,1.10323]
[1644929519723,0.00261999,3112.3,3112.0,0.3]
[1644929520133,0.00261999,3112.3,3112.0,1.10328]
[1644929520528,1.36668589,3112.4,3112.0,1.10328]
[1644929520729,0.00261999,3112.3,3112.0,1.10328]
[1644929520925,0.00261999,3112.3,3112.0,1.8261447]
[1644929521129,0.00261999,3112.3,3112.0,1.10328]
[1644929521628,1.36668589,3112.4,3112.0,0.80328]
[1644929522027,0.00261999,3112.3,3112.1,0.80323]
[1644929522968,1.36668589,3112.4,3112.1,0.80323]
[1644929523169,1.36930588,3112.4,3112.2,0.80319]
[1644929523574,1.36930588,3112.4,3112.3,0.3]
[1644929524168,1.36930588,3112.4,3112.3,0.80319]
[1644929524169,1.36668589,3112.4,3112.3,0.80319]
[1644929524369,1.36668589,3112.4,3112.1,1.1032]
[1644929524769,1.36668589,3112.4,3112.1,1.10326]
[1644929525570,1.36930588,3112.4,3112.1,1.10326]
[1644929526325,1.36930588,3112.4,3112.2,0.80323]
[1644929526522,1.36668589,3112.4,3112.2,0.80323]
[1644929526722,1.36930588,3112.4,3112.2,0.80323]
[1644929526921,1.36930588,3112.4,3112.1,1.10326]
[1644929527322,1.36930588,3112.4,3112.3,0.80317]
[1644929527522,1.36930588,3112.4,3112.1,1.10326]
[1644929527724,1.36668589,3112.4,3112.1,1.10326]
[1644929528323,1.36668589,3112.4,3112.1,0.3]
[1644929528725,2.48945989,3112.5,3112.0,1.1033]
[1644929528929,1.37011043,3112.4,3112.0,1.1033]
[1644929529125,1.37273042,3112.4,3112.0,1.1033]
[1644929529327,1.36663546,3112.3,3112.0,1.1033]
[1644929529525,1.36663546,3112.3,3112.0,1.90657]
[1644929529771,0.00609496,3112.4,3112.0,1.90657]
[1644929529971,1.36663486,3112.3,3112.0,1.1033]
[1644929530369,1.36925485,3112.3,3112.0,1.1033]
[1644929530570,1.36663486,3112.2,3112.0,1.1033]
[1644929530771,1.36663486,3112.1,3112.0,1.1033]
[1644929530972,1.36663486,3112.2,3112.0,1.1033]
[1644929531171,1.36663486,3112.1,3112.0,1.1033]
[1644929531374,1.36663486,3112.1,3112.0,3.00968]
[1644929531578,1.36663486,3112.1,3112.0,2.929258]
[1644929531775,0.00261999,3112.2,3112.0,2.929258]
[1644929531977,0.00609496,3112.2,3112.0,0.6]
[1644929532174,1.36663486,3112.1,3112.0,0.3]
[1644929532379,1.36925485,3112.2,3112.0,0.3]
[1644929532576,1.36663486,3112.2,3112.1,0.80322]
[1644929532784,0.00347497,3112.3,3112.1,1.10322]
[1644929532785,0.00609496,3112.3,3112.1,1.10322]
[1644929533077,1.36657424,3112.2,3112.1,1.10322]
[1644929534036,0.00609496,3112.3,3112.1,1.10322]
[1644929534238,0.00609496,3112.3,3112.1,0.3]
[1644929534239,1.36657424,3112.2,3112.1,0.3]
[1644929535638,1.36657424,3112.2,3112.1,1.10324]
[1644929536237,1.36657424,3112.2,3112.0,1.04840412]
[1644929536438,1.36657424,3112.1,3112.0,1.04840412]
[1644929536639,1.36657424,3112.2,3111.9,0.80329]
[1644929536842,0.00347497,3112.1,3111.9,0.80329]
[1644929537038,1.37004921,3112.2,3111.9,0.80329]
[1644929537474,1.03271674,3112.0,3111.7,1.60657]
[1644929537675,1.36657424,3112.1,3111.2,0.25]
[1644929537676,0.00347497,3111.9,3111.2,0.25]
[1644929537877,0.00347497,3111.9,3111.3,0.80346]
[1644929538476,0.00347497,3111.9,3111.3,3.855526]
[1644929538874,0.00347497,3111.9,3111.5,0.80328]
[1644929539075,0.00347497,3111.9,3111.5,1.60656]
[1644929539275,0.00347497,3111.9,3111.5,1.90656]
[1644929539479,0.00347497,3111.9,3111.5,1.60656]
[1644929540076,0.00261982,3112.1,3111.6,1.6066]
[1644929540277,0.00261982,3112.1,3111.6,2.40985]
[1644929540477,0.00609479,3112.1,3111.6,2.40985]
[1644929540679,1.36657424,3112.0,3111.6,2.40985]
[1644929541020,0.00347497,3111.9,3111.7,0.8033]
[1644929541223,0.00347497,3111.9,3111.7,0.80333]
[1644929541421,1.36657424,3112.0,3111.7,0.80333]
[1644929541626,1.37004921,3111.9,3111.7,2.40984]
[1644929541822,1.36657424,3111.8,3111.7,2.40984]
[1644929542324,1.36657424,3111.8,3111.7,0.80333]
[1644929542522,0.0026199,3112.1,3111.7,0.80333]
[1644929543023,1.37266911,3112.1,3111.7,0.80333]
[1644929543222,1.36657424,3112.1,3111.8,1.526245]
[1644929543424,1.37004921,3112.0,3111.9,3.19980314]
[1644929543625,2.4868399,3112.5,3111.8,1.826215]
[1644929543626,0.00261999,3112.1,3111.8,2.126215]
[1644929543824,0.00347497,3112.0,3111.8,7.90645189]
[1644929544024,0.00261999,3112.1,3111.8,4.732675]
[1644929544424,1.36664247,3112.2,3111.8,7.80810978]
[1644929544628,1.36664247,3112.1,3111.9,0.80322]
[1644929544884,0.00261999,3112.1,3112.0,0.80316]
[1644929545079,1.36925853,3112.1,3112.0,1.10316]
[1644929545278,0.00261999,3112.1,3112.0,1.10316]
[1644929545680,1.36663854,3112.1,3112.0,1.10316]
[1644929545881,0.00347497,3112.3,3112.0,1.10316]
[1644929546080,0.00261999,3112.2,3112.1,0.80323]
[1644929546479,1.36925853,3112.2,3112.1,0.80323]
[1644929546680,1.36925853,3112.2,3111.3,3.32414084]
[1644929546881,1.36925853,3112.2,3111.8,0.7229572]
[1644929546882,0.00347497,3112.1,3111.8,0.7229572]
[1644929547184,1.37011351,3112.1,3112.0,0.80329]
[1644929547380,1.36663854,3112.1,3112.0,0.80329]
[1644929547681,1.36663854,3112.1,3111.5,2.80973]
[1644929547881,1.36663854,3112.1,3111.5,5.21975]
[1644929547882,0.00347497,3112.1,3111.5,5.21975]
[1644929548183,1.36663854,3112.2,3111.5,5.21975]
[1644929548382,1.36925844,3112.1,3111.7,0.80334]
[1644929548620,0.00347497,3112.0,3111.7,0.80334]
[1644929548821,1.37011351,3112.0,3111.7,0.80334]
[1644929549523,0.00347497,3112.0,3111.8,0.80331]
[1644929549726,0.00261994,3112.1,3111.8,0.80331]
[1644929550123,0.00261994,3112.1,3111.8,1.60664]
[1644929550325,1.36925848,3112.1,3111.8,0.80333]
[1644929550524,1.36663854,3112.0,3111.8,0.80333]
[1644929550727,1.36663854,3111.9,3111.8,0.80333]
[1644929550924,1.36663854,3112.0,3111.7,1.60657]
[1644929551127,1.36663854,3111.9,3111.7,1.60657]
[1644929551327,1.36663854,3111.8,3111.7,2.40986]
[1644929551524,1.36663854,3111.8,3111.7,2.70986]
[1644929551525,1.3667216,3111.8,3111.7,2.70986]
[1644929551726,1.3667216,3112.3,3111.9,0.80332]
[1644929551925,0.00261986,3112.1,3111.9,0.80332]
[1644929552127,1.36929604,3112.1,3111.6,1.1456]
[1644929552377,1.36667618,3112.0,3111.7,0.80335]
[1644929553075,1.36667618,3111.9,3111.7,0.80335]
[1644929553276,1.36667618,3111.8,3111.7,0.80335]
[1644929553674,0.00261994,3112.1,3111.7,1.10335]
[1644929553874,0.00261994,3112.1,3111.7,0.80333]
[1644929554076,0.00347497,3112.4,3111.7,0.80333]
[1644929554274,0.00347497,3112.1,3111.7,0.80333]
[1644929554475,0.00261999,3112.1,3111.7,0.80333]
[1644929554884,0.00261999,3112.1,3111.8,3.12686406]
[1644929555076,0.00261999,3112.1,3111.8,3.93006406]
[1644929555277,0.00347497,3112.4,3111.8,0.8032]
[1644929555278,1.36660772,3112.3,3111.8,0.8032]
[1644929555477,1.37008269,3112.2,3111.8,0.8032]
[1644929555677,1.36922771,3112.1,3111.8,0.8032]
[1644929555878,1.37270268,3112.1,3111.8,0.8032]
[1644929556321,1.36660772,3112.0,3111.8,0.8032]
[1644929556522,1.36660772,3112.0,3111.9,1.60651]
[1644929556821,0.00347497,3112.4,3111.9,1.60651]
[1644929556822,0.00261999,3112.1,3111.9,1.60651]
[1644929557021,0.00261999,3112.1,3111.9,2.40978]
[1644929557526,0.00261999,3112.1,3111.9,3.21305]
[1644929557722,1.36662053,3112.1,3112.0,0.80326]
[1644929557920,0.00347497,3112.4,3112.0,0.80326]
[1644929557921,0.00261999,3112.2,3112.0,0.80326]
[1644929558120,0.00261999,3112.2,3112.0,1.6065]